[Event "71st MNE-ch 2019"]
[Site "Podgorica"]
[Date "2019.05.24"]
[Round "7.14"]
[White "Koljevic, Nikolina"]
[Black "Petrovic, Slavko"]
[Result "1-0"]
[ECO "B30"]
[WhiteElo "1964"]
[BlackElo "1945"]
[Annotator "NA RC"]
[PlyCount "91"]
[EventDate "2019.05.18"]
[EventType "swiss"]
[EventCountry "MNE"]
[SourceTitle "playchess.com"]
[Source "ChessBase"]
[SourceQuality "1"]
[TimeControl "40/5400+30:1800+30"]

1. e4 {[%emt 0:00:00]} c5 {[%emt 0:00:00]} 2. Nf3 {[%emt 0:00:00]} Nc6 {[%emt 0:00:29]} 3. Bb5 {[%emt 0:00:00]} Qc7 {[%emt 0:01:23]} 4. Nc3 {[%emt 0:00:48]} e6 {[%emt 0:00:26]} 5. Bxc6 {[%emt 0:01:03]} bxc6 {[%emt 0:01:25]} (5... Qxc6 6. d4 cxd4 7. Nxd4 Qc7 8. Ndb5 Qb8 9. Be3 a6 10. Bb6 axb5 11. Nxb5 Bb4+ 12. c3 Ba5 13. Bxa5 Rxa5 {1-0 (27) Kryvoruchko,Y (2703)-Tabatabaei,M (2605) Dubai 2018}) 6. O-O {[%emt 0:01:52] B30: Sicilian: 2...Nc6 3 Bb5, lines without ...g6} e5 {[%emt 0:02:15]} 7. d3 {[%emt 0:01:29]} Be7 {[%emt 0:00:40]} 8. Be3 {[%emt 0:04:33]} Rb8 $146 {[%emt 0:01:27]} ({Predecessor:} 8... Nf6 9. Nd2 d6 10. h3 g5 11. Bxg5 Bxh3 12. Bh4 Rg8 {1-0 (43) Zilinskas,V (2080)-Novotny,M (2250) Ostrava 2007}) 9. Qc1 {[%emt 0:02:01]} d6 {[%emt 0:02:14]} 10. Nd2 {[%emt 0:02:59]} g5 {[%emt 0:04:38]} 11. Nb3 {[%emt 0:03:14]} h6 {[%emt 0:00:26]} 12. Ne2 {[%emt 0:07:20]} Be6 {[%emt 0:06:04]} 13. Ng3 {[%emt 0:03:19]} Qd7 {[%emt 0:01:00]} 14. c3 {[%emt 0:14:13]} c4 {[%emt 0:04:08]} 15. dxc4 {[%emt 0:00:54]} Bxc4 {[%emt 0:03:05]} 16. Rd1 {[%emt 0:00:05]} Qc7 {[%emt 0:00:48]} 17. Nd2 {[%emt 0:09:17]} Be6 {[%emt 0:01:38]} 18. c4 {[%emt 0:06:53]} Nf6 {[%emt 0:01:24]} 19. b3 {[%emt 0:00:54]} O-O {[%emt 0:07:57]} 20. Nf3 {[%emt 0:04:53]} Nh7 {[%emt 0:04:57]} 21. Qc2 {[%emt 0:03:02]} Kh8 {[%emt 0:02:36]} 22. c5 {[%emt 0:01:45]} d5 {[%emt 0:05:38]} 23. exd5 {[%emt 0:06:42]} cxd5 {[%emt 0:02:21]} 24. Nf5 {[%emt 0:00:37]} Bf6 {[%emt 0:03:49]} 25. Rac1 {[%emt 0:06:00]} d4 {[%emt 0:09:15]} 26. Bd2 {[%emt 0:00:17]} Qc6 {[%emt 0:01:28]} 27. Re1 {[%emt 0:02:15]} Bd5 $2 {[%emt 0:02:03]} (27... Rbd8 $16 {is more resistant.}) 28. Nxe5 {[%emt 0:00:37]} Bxe5 {[%emt 0:08:58]} 29. Rxe5 {[%emt 0:00:03]} Bxg2 {[%emt 0:02:21]} 30. Nxd4 {[%emt 0:00:06]} Qa8 {[%emt 0:04:31]} 31. c6 {[%emt 0:01:09]} Bh3 {[%emt 0:03:24]} 32. Qc3 {[%emt 0:02:54]} Bc8 {[%emt 0:02:15]} 33. Nb5 {[%emt 0:01:35]} Rxb5 {[%emt 0:01:44]} 34. Rxb5+ {[%emt 0:00:05]} Kg8 {[%emt 0:00:14]} 35. h4 {[%emt 0:01:26]} Ba6 {[%emt 0:06:13]} 36. Ra5 {[%emt 0:01:32]} Qc8 {[%emt 0:00:33]} 37. hxg5 {[%emt 0:02:05]} h5 {[%emt 0:00:26]} 38. Qf3 {[%emt 0:01:53]} h4 {[%emt 0:01:25]} 39. Qf5 {[%emt 0:00:34]} Qxf5 {[%emt 0:01:07]} 40. Rxf5 {[%emt 0:00:00]} Bc8 {[%emt 0:00:00]} 41. Rb5 {[%emt 0:01:35]} Kg7 {[%emt 0:06:24]} 42. c7 {[%emt 0:01:45]} Kg6 {[%emt 0:00:30]} 43. Rc6+ {[%emt 0:00:44]} f6 {[%emt 0:01:15]} 44. Rb8 {[%emt 0:01:45]} Kf7 {[%emt 0:00:36]} 45. Bc3 {[%emt 0:02:23]} fxg5 $18 {[%emt 0:00:49]} 46. Rh6 {[%emt 0:00:12]} 1-0

[Event "71st MNE-ch 2019"]
[Site "Podgorica"]
[Date "2019.05.24"]
[Round "7.15"]
[White "Stankovic, Zarko"]
[Black "Bacic, Kristina"]
[Result "0-1"]
[ECO "B01"]
[WhiteElo "2218"]
[BlackElo "1819"]
[Annotator "RC"]
[PlyCount "84"]
[EventDate "2019.05.18"]
[EventType "swiss"]
[EventCountry "MNE"]
[SourceTitle "playchess.com"]
[Source "ChessBase"]
[SourceQuality "1"]
[TimeControl "40/5400+30:1800+30"]

1. e4 {[%emt 0:28:59]} d5 {[%emt 0:00:00]} 2. exd5 {[%emt 0:00:11]} Qxd5 {[%emt 0:00:00]} 3. Nc3 {[%emt 0:00:15]} Qd8 {[%emt 0:00:02]} 4. g3 {[%emt 0:02:13]} Nf6 {[%emt 0:00:14]} 5. Bg2 {[%emt 0:00:54]} c6 {[%emt 0:00:14]} 6. Nge2 {[%emt 0:00:26]} Bf5 {[%emt 0:00:35]} 7. d3 {[%emt 0:00:31]} e6 {[%emt 0:00:19]} 8. O-O {[%emt 0:00:11]} Be7 {[%emt 0:01:21]} 9. h3 {[%emt 0:01:02]} O-O {[%emt 0:01:06]} 10. b3 {[%emt 0:02:01]} Nd5 {[%emt 0:01:29]} 11. Ne4 {[%emt 0:01:08]} Nd7 {[%emt 0:01:31]} 12. Bb2 {[%emt 0:00:09]} N7f6 {[%emt 0:00:49]} 13. a3 {[%emt 0:00:27]} Bg6 {[%emt 0:02:09]} 14. c4 {[%emt 0:01:01]} Nb6 {[%emt 0:01:23]} 15. Qc2 {[%emt 0:00:15]} Nxe4 {[%emt 0:01:19]} 16. dxe4 {[%emt 0:00:37]} Bf6 {[%emt 0:02:10]} 17. Rad1 {[%emt 0:00:32]} Qe7 {[%emt 0:01:26]} 18. f4 {[%emt 0:22:58]} Bxb2 {[%emt 0:02:50]} 19. Qxb2 {[%emt 0:00:02]} Rfd8 {[%emt 0:17:22]} 20. Rxd8+ {[%emt 0:04:12]} Rxd8 {[%emt 0:00:13]} 21. f5 {[%emt 0:00:13]} exf5 {[%emt 0:00:24]} 22. exf5 {[%emt 0:00:02]} Qe3+ {[%emt 0:07:04]} 23. Rf2 {[%emt 0:18:55]} Bxf5 {[%emt 0:10:28]} 24. Nf4 {[%emt 0:05:20]} Qxg3 {[%emt 0:17:21]} 25. Qe2 {[%emt 0:00:26]} Qxb3 {[%emt 0:05:02]} 26. Qe7 {[%emt 0:01:45]} Qd1+ {[%emt 0:01:27]} 27. Bf1 {[%emt 0:02:05]} Qd7 {[%emt 0:06:06]} 28. Qg5 {[%emt 0:02:14]} Bg6 {[%emt 0:05:20]} 29. h4 {[%emt 0:00:14]} f6 {[%emt 0:05:26]} 30. Qg3 {[%emt 0:00:28]} Bf7 {[%emt 0:04:40]} 31. Bh3 {[%emt 0:01:52]} Qd4 {[%emt 0:01:58]} 32. Be6 {[%emt 0:00:19]} Nxc4 {[%emt 0:01:56]} 33. Kh2 {[%emt 0:00:20]} Ne5 {[%emt 0:02:01]} 34. Rg2 {[%emt 0:01:42]} Ng6 {[%emt 0:00:34]} 35. Nxg6 {[%emt 0:00:31]} hxg6 {[%emt 0:00:30]} 36. Bxf7+ {[%emt 0:00:03]} Kxf7 {[%emt 0:00:04]} 37. Qxg6+ {[%emt 0:00:13]} Ke6 {[%emt 0:00:31]} 38. Re2+ {[%emt 0:01:49]} Kd6 {[%emt 0:00:40]} 39. Qxg7 {[%emt 0:00:44]} Qxh4+ {[%emt 0:00:22]} 40. Kg2 {[%emt 0:00:00]} Qg5+ {[%emt 0:00:00]} 41. Qxg5 {[%emt 0:01:12]} fxg5 {[%emt 0:00:10]} 42. Kg3 {[%emt 0:01:23]} Rg8 {[%emt 0:01:50]} 0-1

[Event "71st MNE-ch 2019"]
[Site "Podgorica"]
[Date "2019.05.24"]
[Round "7.16"]
[White "Ljeskovic, Luka"]
[Black "Rakic, Tijana"]
[Result "0-1"]
[ECO "A00"]
[WhiteElo "1710"]
[BlackElo "1579"]
[Annotator "NA RC"]
[PlyCount "66"]
[EventDate "2019.05.18"]
[EventType "swiss"]
[EventCountry "MNE"]
[SourceTitle "playchess.com"]
[Source "ChessBase"]
[SourceQuality "1"]
[TimeControl "40/5400+30:1800+30"]

1. g3 {[%emt 0:06:53]} c5 {[%emt 0:00:00]} 2. Bg2 {[%emt 0:00:22]} Nc6 {[%emt 0:00:00]} 3. Nc3 {[%emt 0:00:16]} g6 {[%emt 0:00:26]} 4. f4 {[%emt 0:00:15]} Bg7 {[%emt 0:03:57]} 5. e4 {[%emt 0:00:14]} d6 {[%emt 0:00:31]} 6. h3 {[%emt 0:00:23]} e6 {[%emt 0:01:46]} 7. Nge2 {[%emt 0:00:35]} Nge7 {[%emt 0:00:24]} 8. d3 {[%emt 0:01:01]} a6 {[%emt 0:03:37]} 9. a4 {[%emt 0:04:03]} Nd4 {[%emt 0:03:03]} 10. Nxd4 {[%emt 0:00:30]} cxd4 {[%emt 0:03:20]} 11. Ne2 {[%emt 0:00:36]} h5 {[%emt 0:02:56]} 12. O-O {[%emt 0:00:42]} Bd7 {[%emt 0:04:18]} 13. b3 {[%emt 0:01:47]} Qc7 {[%emt 0:01:52]} 14. Bb2 {[%emt 0:00:14]} Nc6 {[%emt 0:00:15]} 15. Qd2 {[%emt 0:00:49]} O-O {[%emt 0:00:19]} 16. g4 {[%emt 0:00:41]} hxg4 {[%emt 0:01:53]} 17. hxg4 {[%emt 0:00:06]} Ne7 {[%emt 0:04:49]} 18. Bxd4 {[%emt 0:02:04]} e5 {[%emt 0:02:15]} 19. Bb2 {[%emt 0:00:48]} Bxg4 {[%emt 0:00:24]} 20. Rac1 {[%emt 0:07:43]} Bh6 {[%emt 0:10:38]} 21. Qe3 {[%emt 0:07:40]} Bxe2 {[%emt 0:03:36]} 22. Qxe2 {[%emt 0:00:11]} Bxf4 {[%emt 0:04:08]} 23. Rxf4 {[%emt 0:00:37]} exf4 {[%emt 0:00:11]} 24. Qf3 {[%emt 0:00:38]} Qc5+ {[%emt 0:02:08]} 25. Kf1 {[%emt 0:03:52]} Qe3 {[%emt 0:08:07]} 26. Qg4 {[%emt 0:00:35]} Qg3 {[%emt 0:15:48]} 27. Qd7 {[%emt 0:00:49]} f3 28. Bh1 {[%emt 0:00:18]} Nc6 {[%emt 0:01:15]} 29. Qxb7 {[%emt 0:02:09]} Ne5 {[%emt 0:00:47]} 30. Bxe5 {[%emt 0:01:01]} dxe5 {[%emt 0:00:29]} 31. Qb4 {[%emt 0:00:27]} Kg7 {[%emt 0:02:03]} 32. Qe1 {[%emt 0:00:14]} Qf4 {[%emt 0:00:32]} 33. Qf2 {[%emt 0:01:14]} Qxc1+ {[%emt 0:00:21]} 0-1

[Event "71st MNE-ch 2019"]
[Site "Podgorica"]
[Date "2019.05.25"]
[Round "8.1"]
[White "Kontic, Djordjije"]
[Black "Djukic, Nikola"]
[Result "0-1"]
[ECO "B30"]
[WhiteElo "2264"]
[BlackElo "2552"]
[Annotator "ChessBase"]
[PlyCount "84"]
[EventDate "2019.05.18"]
[EventType "swiss"]
[EventCountry "MNE"]
[SourceTitle "playchess.com"]
[Source "ChessBase"]
[SourceQuality "1"]
[TimeControl "40/5400+30:1800+30"]

1. e4 {[%emt 0:05:13]} c5 {[%emt 0:00:00]} 2. Nf3 {[%emt 0:00:47]} Nc6 {[%emt 0:00:00]} 3. Nc3 {[%emt 0:01:23]} g6 {[%emt 0:00:00]} 4. a3 {[%emt 0:09:47]} Bg7 {[%emt 0:05:08]} 5. Bc4 {[%emt 0:02:17]} d6 {[%emt 0:18:48]} 6. d3 {[%emt 0:11:56]} e6 {[%emt 0:17:15]} 7. Bg5 {[%emt 0:16:59]} Nge7 {[%emt 0:00:26]} 8. Ba2 {[%emt 0:01:01]} h6 {[%emt 0:03:03]} 9. Bh4 {[%emt 0:04:33]} O-O {[%emt 0:05:49]} 10. O-O {[%emt 0:04:57]} Rb8 {[%emt 0:02:12]} 11. Re1 {[%emt 0:06:16]} b5 {[%emt 0:01:26]} 12. Rb1 {[%emt 0:00:14]} a6 {[%emt 0:11:13]} 13. Bg3 {[%emt 0:04:52]} Bb7 {[%emt 0:04:18]} 14. h4 {[%emt 0:05:23]} Kh8 {[%emt 0:05:47]} 15. Qc1 {[%emt 0:03:25]} Nd4 {[%emt 0:01:57]} 16. Nh2 {[%emt 0:04:23]} Rc8 {[%emt 0:04:58]} 17. Nd1 {[%emt 0:00:26]} d5 {[%emt 0:03:48]} 18. c3 {[%emt 0:00:32]} Ndc6 {[%emt 0:00:14]} 19. Ng4 {[%emt 0:01:49]} h5 {[%emt 0:00:37]} 20. exd5 {[%emt 0:00:42]} exd5 {[%emt 0:02:00]} 21. Ne5 {[%emt 0:02:35]} Nf5 {[%emt 0:01:26]} 22. Nf3 {[%emt 0:05:08]} Nxg3 {[%emt 0:01:29]} 23. fxg3 {[%emt 0:00:04]} Qd6 {[%emt 0:02:50]} 24. Qf4 {[%emt 0:01:11]} Rcd8 {[%emt 0:00:46]} 25. Ne3 {[%emt 0:00:29]} Qxf4 {[%emt 0:01:50]} 26. gxf4 {[%emt 0:00:04]} d4 {[%emt 0:00:08]} 27. cxd4 {[%emt 0:00:45]} Bxd4 {[%emt 0:01:53]} 28. Kh2 {[%emt 0:01:01]} Rd7 {[%emt 0:02:16]} 29. Ng5 {[%emt 0:01:26]} Nd8 {[%emt 0:00:28]} 30. Nc2 {[%emt 0:00:40]} Bf2 {[%emt 0:00:29]} 31. Re5 {[%emt 0:02:43]} Rxd3 {[%emt 0:01:00]} 32. Ne1 {[%emt 0:01:33]} Bg3+ {[%emt 0:00:27]} 33. Kg1 {[%emt 0:00:25]} Rd2 {[%emt 0:01:00]} 34. Nef3 {[%emt 0:00:13]} Bxf4 {[%emt 0:00:23]} 35. Re7 {[%emt 0:00:46]} Bxg5 {[%emt 0:00:20]} 36. Nxg5 {[%emt 0:00:53]} c4 {[%emt 0:01:02]} 37. Kf1 {[%emt 0:01:03]} Bxg2+ {[%emt 0:00:13]} 38. Ke1 {[%emt 0:00:12]} Rd6 {[%emt 0:00:31]} 39. Kf2 {[%emt 0:00:39]} Bc6 {[%emt 0:00:09]} 40. Kg1 {[%emt 0:00:00]} Kg8 {[%emt 0:00:00]} 41. Rf1 {[%emt 0:01:39]} Rd2 {[%emt 0:01:16]} 42. Rf2 {[%emt 0:01:41]} Rd4 {[%emt 0:04:09]} 0-1

[Event "71st MNE-ch 2019"]
[Site "Podgorica"]
[Date "2019.05.25"]
[Round "8.2"]
[White "Kalezic, Blazo"]
[Black "Tomic, Aleksandar"]
[Result "1/2-1/2"]
[ECO "B22"]
[WhiteElo "2450"]
[BlackElo "2357"]
[Annotator "ChessBase"]
[PlyCount "94"]
[EventDate "2019.05.18"]
[EventType "swiss"]
[EventCountry "MNE"]
[SourceTitle "playchess.com"]
[Source "ChessBase"]
[SourceQuality "1"]
[TimeControl "40/5400+30:1800+30"]

1. e4 {[%emt 0:00:00]} c5 {[%emt 0:09:02]} 2. c3 {[%emt 0:00:00]} d5 {[%emt 0:00:38]} 3. exd5 {[%emt 0:00:00]} Qxd5 {[%emt 0:00:16]} 4. d4 {[%emt 0:03:05]} Nf6 {[%emt 0:03:46]} 5. Nf3 {[%emt 0:04:38]} e6 {[%emt 0:01:12]} 6. Bd3 {[%emt 0:04:53]} Be7 {[%emt 0:04:21]} 7. O-O {[%emt 0:01:18]} O-O {[%emt 0:00:17]} 8. Be3 {[%emt 0:00:28]} b6 {[%emt 0:03:17]} 9. c4 {[%emt 0:05:50]} Qd6 {[%emt 0:07:24]} 10. dxc5 {[%emt 0:04:20]} bxc5 {[%emt 0:00:01]} 11. Qe2 {[%emt 0:00:09]} Bb7 {[%emt 0:03:07]} 12. Rd1 {[%emt 0:00:16]} Qc7 {[%emt 0:08:21]} 13. Nc3 {[%emt 0:05:42]} Nc6 {[%emt 0:03:02]} 14. Rac1 {[%emt 0:05:08]} Rfd8 {[%emt 0:08:42]} 15. Nb5 {[%emt 0:17:04]} Qb8 {[%emt 0:05:27]} 16. h3 {[%emt 0:02:02]} e5 {[%emt 0:11:03]} 17. Nc3 {[%emt 0:11:04]} Nd4 {[%emt 0:13:18]} 18. Bxd4 {[%emt 0:00:19]} exd4 {[%emt 0:01:46]} 19. Qxe7 {[%emt 0:12:22]} Bxf3 {[%emt 0:00:28]} 20. gxf3 {[%emt 0:01:14]} dxc3 {[%emt 0:01:46]} 21. bxc3 {[%emt 0:00:12]} Qf4 {[%emt 0:02:16]} 22. Qe3 {[%emt 0:05:03]} Qh4 {[%emt 0:01:00]} 23. Bf1 {[%emt 0:00:43]} Qh5 {[%emt 0:03:04]} 24. Qf4 {[%emt 0:02:15]} Re8 {[%emt 0:00:29]} 25. Re1 {[%emt 0:01:02]} h6 {[%emt 0:01:42]} 26. Kh1 {[%emt 0:05:37]} Qg6 {[%emt 0:04:30]} 27. Red1 {[%emt 0:03:20]} Qh5 {[%emt 0:00:23]} 28. Re1 {[%emt 0:01:12]} Qg6 {[%emt 0:00:38]} 29. Red1 {[%emt 0:00:57]} Re6 {[%emt 0:00:43]} 30. Qg3 {[%emt 0:02:17]} Qh5 {[%emt 0:00:47]} 31. Bd3 {[%emt 0:00:26]} Rae8 {[%emt 0:00:36]} 32. Rg1 {[%emt 0:00:22]} g6 {[%emt 0:00:18]} 33. Kh2 {[%emt 0:00:39]} Kg7 {[%emt 0:01:01]} 34. Rcd1 {[%emt 0:01:59]} R8e7 {[%emt 0:00:17]} 35. f4 {[%emt 0:00:17]} Ra6 {[%emt 0:00:41]} 36. Rd2 {[%emt 0:00:53]} Ra3 {[%emt 0:00:53]} 37. f5 {[%emt 0:00:26]} g5 {[%emt 0:01:00]} 38. Bc2 {[%emt 0:00:38]} g4 {[%emt 0:00:37]} 39. Bd1 {[%emt 0:00:30]} Ne4 {[%emt 0:00:38]} 40. f6+ {[%emt 0:00:00]} Nxf6 {[%emt 0:00:00]} 41. Bxg4 {[%emt 0:02:27]} Nxg4+ {[%emt 0:03:45]} 42. Qxg4+ {[%emt 0:00:45]} Qxg4 {[%emt 0:00:17]} 43. Rxg4+ {[%emt 0:00:37]} Kh7 {[%emt 0:00:33]} 44. Rg3 {[%emt 0:09:32]} Ra4 {[%emt 0:01:17]} 45. Rgd3 {[%emt 0:01:54]} Rxc4 {[%emt 0:01:28]} 46. Rd7 {[%emt 0:00:19]} Rxd7 {[%emt 0:00:19]} 47. Rxd7 {[%emt 0:00:06]} Kg6 {[%emt 0:00:08]} 1/2-1/2

[Event "71st MNE-ch 2019"]
[Site "Podgorica"]
[Date "2019.05.25"]
[Round "8.3"]
[White "Blagojevic, Dragisa"]
[Black "Nikac, Predrag"]
[Result "1-0"]
[ECO "A89"]
[WhiteElo "2499"]
[BlackElo "2319"]
[Annotator "ChessBase"]
[PlyCount "79"]
[EventDate "2019.05.18"]
[EventType "swiss"]
[EventCountry "MNE"]
[SourceTitle "playchess.com"]
[Source "ChessBase"]
[SourceQuality "1"]
[TimeControl "40/5400+30:1800+30"]

1. d4 {[%emt 0:00:54]} f5 {[%emt 0:02:23]} 2. c4 {[%emt 0:00:10]} g6 {[%emt 0:00:37]} 3. g3 {[%emt 0:00:25]} Nf6 {[%emt 0:00:15]} 4. Nc3 {[%emt 0:00:12]} Bg7 {[%emt 0:00:15]} 5. Bg2 {[%emt 0:00:09]} O-O {[%emt 0:00:13]} 6. Nf3 {[%emt 0:00:05]} d6 {[%emt 0:00:25]} 7. O-O {[%emt 0:00:07]} Nc6 {[%emt 0:02:13]} 8. d5 {[%emt 0:00:13]} Na5 {[%emt 0:00:10]} 9. Qd3 {[%emt 0:01:07]} c5 {[%emt 0:00:14]} 10. Bd2 {[%emt 0:01:58]} a6 {[%emt 0:00:48]} 11. Rac1 {[%emt 0:02:04]} Rb8 {[%emt 0:01:42]} 12. b3 {[%emt 0:00:24]} Bd7 {[%emt 0:10:09]} 13. e4 {[%emt 0:01:10]} Ng4 {[%emt 0:12:07]} 14. exf5 {[%emt 0:11:26]} Rxf5 {[%emt 0:05:37]} 15. Qe2 {[%emt 0:07:30]} b5 {[%emt 0:01:31]} 16. Ng5 {[%emt 0:05:32]} bxc4 {[%emt 0:05:43]} 17. Qxg4 {[%emt 0:11:37]} cxb3 {[%emt 0:06:06]} 18. Qh4 {[%emt 0:14:03]} h6 {[%emt 0:07:25]} 19. Nge4 {[%emt 0:02:58]} bxa2 {[%emt 0:08:48]} 20. Nxa2 {[%emt 0:11:11]} Nb3 {[%emt 0:09:52]} 21. Rcd1 {[%emt 0:01:34]} Nd4 {[%emt 0:03:24]} 22. g4 {[%emt 0:06:00]} g5 {[%emt 0:02:25]} 23. Qh3 {[%emt 0:02:41]} Ne2+ {[%emt 0:01:00]} 24. Kh1 {[%emt 0:00:13]} Rf7 {[%emt 0:03:20]} 25. Bxg5 {[%emt 0:02:17]} hxg5 {[%emt 0:01:09]} 26. Nxg5 {[%emt 0:00:06]} Rf4 {[%emt 0:04:10]} 27. Qh7+ {[%emt 0:05:08]} Kf8 {[%emt 0:00:04]} 28. h3 {[%emt 0:00:29]} Rb2 {[%emt 0:01:08]} 29. Nc1 {[%emt 0:00:48]} Nxc1 {[%emt 0:01:25]} 30. Rxc1 {[%emt 0:00:04]} Rbxf2 {[%emt 0:02:07]} 31. Rxf2 {[%emt 0:00:19]} Rxf2 {[%emt 0:00:03]} 32. Rf1 {[%emt 0:06:03]} Rxf1+ {[%emt 0:01:02]} 33. Bxf1 {[%emt 0:00:04]} e6 {[%emt 0:02:08]} 34. Qg6 {[%emt 0:01:43]} Qe8 {[%emt 0:01:36]} 35. Nh7+ {[%emt 0:00:30]} Ke7 {[%emt 0:01:08]} 36. Qxg7+ {[%emt 0:00:22]} Kd8 {[%emt 0:00:01]} 37. Nf6 {[%emt 0:01:04]} Qe7 {[%emt 0:01:01]} 38. Qxe7+ {[%emt 0:00:26]} Kxe7 {[%emt 0:00:19]} 39. Nxd7 {[%emt 0:00:04]} exd5 {[%emt 0:01:45]} 40. Nb6 {[%emt 0:00:00]} 1-0

[Event "71st MNE-ch 2019"]
[Site "Podgorica"]
[Date "2019.05.25"]
[Round "8.5"]
[White "Milovic, Jovan"]
[Black "Kisic, Bozidar"]
[Result "0-1"]
[ECO "A00"]
[WhiteElo "2280"]
[BlackElo "2200"]
[Annotator "NA"]
[PlyCount "80"]
[EventDate "2019.05.18"]
[EventType "swiss"]
[EventCountry "MNE"]
[SourceTitle "playchess.com"]
[Source "ChessBase"]
[SourceQuality "1"]
[TimeControl "40/5400+30:1800+30"]

1. e3 {[%emt 0:09:41]} d5 {[%emt 0:00:25]} 2. c4 {[%emt 0:00:13]} e6 {[%emt 0:00:53]} 3. Nf3 {[%emt 0:02:13]} Nf6 {[%emt 0:03:17]} 4. b3 {[%emt 0:00:52]} Nbd7 {[%emt 0:03:41]} 5. Bb2 {[%emt 0:00:19]} c6 {[%emt 0:01:07]} 6. Nc3 {[%emt 0:01:56]} Bd6 {[%emt 0:02:11]} 7. Qc2 {[%emt 0:01:26]} Qe7 {[%emt 0:04:09]} 8. Rc1 {[%emt 0:03:51]} O-O {[%emt 0:06:48]} 9. d4 {[%emt 0:03:04]} a6 {[%emt 0:14:40]} 10. Be2 {[%emt 0:02:43]} e5 {[%emt 0:12:53]} 11. O-O {[%emt 0:02:00]} e4 {[%emt 0:02:39]} 12. Nd2 {[%emt 0:00:13]} b5 {[%emt 0:03:47]} 13. Nd1 {[%emt 0:04:12]} Bb7 {[%emt 0:04:16]} 14. c5 {[%emt 0:01:06]} Bc7 {[%emt 0:00:20]} 15. f3 {[%emt 0:00:24]} exf3 {[%emt 0:01:59]} 16. gxf3 {[%emt 0:01:12]} Rae8 {[%emt 0:04:44]} 17. Rf2 {[%emt 0:01:11]} Nh5 {[%emt 0:02:44]} 18. f4 {[%emt 0:06:43]} Ndf6 {[%emt 0:05:57]} 19. Nf3 {[%emt 0:01:55]} Ne4 {[%emt 0:04:16]} 20. Rg2 {[%emt 0:03:32]} g6 {[%emt 0:01:33]} 21. Ne5 {[%emt 0:02:28]} Ng7 {[%emt 0:01:06]} 22. Bc3 {[%emt 0:04:16]} f6 {[%emt 0:01:44]} 23. Ng4 {[%emt 0:01:04]} Nf5 {[%emt 0:00:42]} 24. Be1 {[%emt 0:00:21]} h5 {[%emt 0:02:53]} 25. Nh6+ {[%emt 0:13:16]} Nxh6 {[%emt 0:00:48]} 26. Bxh5 {[%emt 0:00:03]} g5 {[%emt 0:04:28]} 27. Bxe8 {[%emt 0:05:29]} Rxe8 {[%emt 0:00:31]} 28. Nf2 {[%emt 0:01:16]} Nf7 {[%emt 0:01:46]} 29. Qd1 {[%emt 0:03:15]} Nxf2 {[%emt 0:01:00]} 30. Bxf2 {[%emt 0:00:03]} Kg7 {[%emt 0:01:15]} 31. h4 {[%emt 0:03:00]} Bc8 {[%emt 0:00:50]} 32. hxg5 {[%emt 0:02:47]} fxg5 {[%emt 0:00:06]} 33. a4 {[%emt 0:00:59]} b4 {[%emt 0:01:08]} 34. Qd2 {[%emt 0:02:17]} Qe4 {[%emt 0:01:22]} 35. Qxb4 {[%emt 0:01:47]} Rh8 {[%emt 0:00:23]} 36. Qc3 {[%emt 0:02:12]} Bh3 {[%emt 0:00:51]} 37. Rh2 {[%emt 0:00:37]} g4 {[%emt 0:01:48]} 38. Qc2 {[%emt 0:01:10]} Qf3 {[%emt 0:01:34]} 39. Qd1 {[%emt 0:03:46]} Ng5 {[%emt 0:00:27]} 40. Qxf3 {[%emt 0:00:00]} Nxf3+ {[%emt 0:00:00]} 0-1

[Event "71st MNE-ch 2019"]
[Site "Podgorica"]
[Date "2019.05.25"]
[Round "8.6"]
[White "Miletic, Vuk"]
[Black "Pecurica, Milos"]
[Result "1/2-1/2"]
[ECO "D37"]
[WhiteElo "1954"]
[BlackElo "2365"]
[Annotator "NA"]
[PlyCount "80"]
[EventDate "2019.05.18"]
[EventType "swiss"]
[EventCountry "MNE"]
[SourceTitle "playchess.com"]
[Source "ChessBase"]
[SourceQuality "1"]
[TimeControl "40/5400+30:1800+30"]

1. d4 {[%emt 0:00:00]} Nf6 {[%emt 0:00:00]} 2. c4 {[%emt 0:00:00]} e6 {[%emt 0:00:08]} 3. Nf3 {[%emt 0:00:00]} d5 {[%emt 0:00:07]} 4. Nc3 {[%emt 0:00:10]} dxc4 {[%emt 0:00:06]} 5. e3 {[%emt 0:00:14]} a6 {[%emt 0:00:20]} 6. a4 {[%emt 0:00:17]} c5 {[%emt 0:01:47]} 7. Bxc4 {[%emt 0:00:21]} Nc6 {[%emt 0:01:26]} 8. O-O {[%emt 0:00:07]} cxd4 {[%emt 0:00:56]} 9. exd4 {[%emt 0:00:29]} Be7 {[%emt 0:00:07]} 10. Re1 {[%emt 0:02:52]} Nb4 {[%emt 0:02:01]} 11. Bg5 {[%emt 0:01:33]} O-O {[%emt 0:00:48]} 12. Qe2 {[%emt 0:00:29]} Re8 {[%emt 0:20:34]} 13. Rad1 {[%emt 0:01:10]} Nfd5 {[%emt 0:04:14]} 14. Bxe7 {[%emt 0:01:19]} Rxe7 {[%emt 0:00:41]} 15. Bxd5 {[%emt 0:19:14]} Nxd5 {[%emt 0:00:11]} 16. Nxd5 {[%emt 0:07:04]} Qxd5 {[%emt 0:00:13]} 17. Rc1 {[%emt 0:00:11]} b6 {[%emt 0:02:08]} 18. Qe5 {[%emt 0:07:58]} Bb7 {[%emt 0:02:22]} 19. Qxd5 {[%emt 0:12:17]} Bxd5 {[%emt 0:00:17]} 20. Ne5 {[%emt 0:01:11]} Kf8 {[%emt 0:19:58]} 21. h4 {[%emt 0:08:25]} Rb7 {[%emt 0:14:15]} 22. Re3 {[%emt 0:06:24]} Rd8 {[%emt 0:01:06]} 23. Rec3 {[%emt 0:00:58]} f6 {[%emt 0:02:51]} 24. Rc8 {[%emt 0:01:15]} Rxc8 {[%emt 0:00:45]} 25. Rxc8+ {[%emt 0:00:03]} Ke7 {[%emt 0:00:04]} 26. Nd3 {[%emt 0:01:56]} a5 {[%emt 0:00:26]} 27. Rc3 Rd7 {[%emt 0:01:55]} 28. Nc1 {[%emt 0:10:12]} Kd6 {[%emt 0:00:25]} 29. f3 {[%emt 0:01:26]} Bc6 {[%emt 0:00:53]} 30. b3 {[%emt 0:00:54]} Rb7 {[%emt 0:00:42]} 31. Nd3 {[%emt 0:02:51]} Bd5 {[%emt 0:00:45]} 32. Kf2 {[%emt 0:03:53]} Rc7 {[%emt 0:02:23]} 33. Rxc7 {[%emt 0:00:40]} Kxc7 {[%emt 0:00:04]} 34. Nc1 {[%emt 0:00:32]} b5 {[%emt 0:00:11]} 35. axb5 {[%emt 0:00:27]} Kb6 {[%emt 0:00:09]} 36. Ke3 {[%emt 0:00:46]} Kxb5 {[%emt 0:00:10]} 37. Kd3 {[%emt 0:01:04]} g5 {[%emt 0:09:43]} 38. hxg5 {[%emt 0:00:45]} fxg5 {[%emt 0:00:04]} 39. Kc3 {[%emt 0:03:55]} h5 {[%emt 0:00:15]} 40. Nd3 {[%emt 0:00:00]} h4 {[%emt 0:00:00]} 1/2-1/2